bitfinex/quotes_ETHUSD_20251217
["timestamp","ask_amount","ask_price","bid_price","bid_amount"]
[1765961566997,0.001,2929.1,2929.0,1.76637353]
[1765961567510,0.001,2929.1,2929.0,5.18050804]
[1765961567810,0.001,2929.1,2929.0,5.12510804]
[1765961568106,0.001,2929.1,2929.0,5.66710804]
[1765961568410,0.0002,2929.1,2929.0,5.66710804]
[1765961569517,0.0002,2929.1,2929.0,5.12510804]
[1765961570117,0.0002,2929.1,2929.0,4.63850804]
[1765961570416,0.1551,2929.1,2929.0,3.41613451]
[1765961571286,0.3877,2929.1,2929.0,3.41613451]
[1765961571808,0.3877,2929.1,2929.0,0.002]
[1765961574982,0.0002,2929.1,2929.0,0.4871]
[1765961576209,0.0002,2929.1,2929.0,3.90123451]
[1765961576782,0.1551,2929.1,2929.0,3.41613451]
[1765961577720,0.5403,2929.1,2929.0,0.002]
[1765961581353,0.0002,2929.1,2929.0,0.4886]
[1765961582647,0.0002,2929.1,2929.0,3.41613451]
[1765961582846,0.0002,2929.1,2929.0,4.11821247]
[1765961584752,0.3877,2929.1,2929.0,3.41613451]
[1765961587531,0.0002,2929.1,2929.0,3.41613451]
[1765961589358,0.0002,2929.1,2929.0,3.87523451]
[1765961589864,0.0002,2929.1,2929.0,4.33263451]
[1765961590074,0.0002,2929.1,2929.0,5.16142247]
[1765961591461,0.0002,2929.1,2929.0,4.24492247]
[1765961592172,0.0004,2929.3,2929.0,7.65905698]
[1765961592466,0.0004,2929.3,2929.2,0.4574]
[1765961592626,0.0004,2929.3,2929.0,7.65905698]
[1765961592627,0.1553,2929.3,2929.0,7.28936902]
[1765961596443,0.0004,2929.3,2929.0,8.07240592]
[1765961596648,0.0004,2929.3,2929.1,0.4591]
[1765961597267,0.0004,2929.3,2929.0,7.61330592]
[1765961597473,0.0004,2929.3,2929.0,8.15430592]
[1765961597775,0.0004,2929.3,2929.0,4.19917141]
[1765961597981,0.0004,2929.3,2929.0,7.61330592]
[1765961598286,0.3879,2929.3,2929.2,3.4139014]
[1765961599583,0.0004,2929.3,2929.2,4.3304014]
[1765961599762,0.0004,2929.3,2929.2,4.36454041]
[1765961599962,0.0004,2929.3,2929.2,3.4139014]
[1765961600160,0.0004,2929.3,2929.2,3.87828163]
[1765961600358,0.0004,2929.3,2929.2,5.18615562]
[1765961605681,0.0004,2929.3,2929.2,9.38897408]
[1765961607273,0.0004,2929.3,2929.2,9.85335431]
[1765961608867,0.0004,2929.3,2929.2,5.65053585]
[1765961609703,0.0004,2929.3,2929.2,5.68467486]
[1765961610276,0.0004,2929.3,2929.2,6.09017886]
[1765961610588,0.0004,2929.3,2929.2,6.06631699]
[1765961610884,0.0004,2929.3,2929.2,6.53069722]
[1765961611197,0.0004,2929.3,2929.2,10.73190865]
[1765961613500,0.0004,2929.3,2929.2,10.73069283]
[1765961616503,0.0006,2929.7,2929.6,0.9316]
[1765961616799,0.0006,2929.7,2929.6,1.4726]
[1765961617205,0.0006,2929.7,2929.6,1.60936031]
[1765961617809,0.0006,2929.7,2929.6,4.48179559]
[1765961617997,0.0006,2929.7,2929.6,5.8133575]
[1765961621207,0.0006,2929.7,2929.6,5.2723575]
[1765961621509,0.0006,2929.7,2929.6,5.13559719]
[1765961621716,0.0006,2929.7,2929.6,5.67659719]
[1765961623714,0.0006,2929.7,2929.6,4.88603528]
[1765961630118,0.0006,2929.7,2929.6,4.34503528]
[1765961630318,0.0006,2929.7,2929.6,4.88603528]
[1765961636127,0.0006,2929.7,2929.6,4.34503528]
[1765961636435,0.0006,2929.7,2929.6,4.88603528]
[1765961637318,0.0006,2929.7,2929.6,5.71599345]
[1765961640341,0.3873,2929.7,2929.6,3.41343528]
[1765961641205,4.19999561,2930.2,2929.6,3.41343528]
[1765961641404,3.41362142,2930.3,2929.6,3.41343528]
[1765961642031,3.41362142,2930.3,2929.5,6.82709767]
[1765961642265,0.3873,2930.1,2929.5,6.82709767]
[1765961644041,0.1554,2929.6,2929.2,0.4982]
[1765961644343,0.1577,2929.2,2929.1,3.41597541]
[1765961645044,0.3827,2929.5,2929.1,7.28259336]
[1765961645218,0.3873,2929.7,2929.1,3.41597541]
[1765961645408,0.3873,2929.5,2929.1,3.41597541]
[1765961645610,0.1554,2929.2,2929.1,3.41597541]
[1765961646220,0.1554,2929.2,2929.1,0.002]
[1765961647315,12.35429262,2929.2,2929.1,0.002]
[1765961647511,12.35429262,2929.2,2929.0,0.002]
[1765961647512,0.85558023,2929.1,2929.0,0.002]
[1765961647746,0.85558023,2929.1,2928.7,0.002]
[1765961647747,0.6323,2928.8,2928.7,0.002]
[1765961647950,5.29667584,2928.8,2928.7,0.002]
[1765961648729,0.1516,2928.8,2928.7,0.002]
[1765961649936,4.73889561,2928.8,2928.7,0.002]
[1765961650250,5.95141009,2928.8,2928.7,0.002]
[1765961650843,9.36577774,2928.8,2928.7,0.002]
[1765961651149,5.95141009,2928.8,2928.7,0.002]
[1765961651321,9.36577774,2928.8,2928.7,0.002]
[1765961651720,9.83015797,2928.8,2928.7,0.002]
[1765961651920,0.47508023,2928.7,2928.5,0.002]
[1765961652129,3.07835989,2928.7,2928.5,0.002]
[1765961652952,6.49284413,2928.7,2928.5,0.002]
[1765961658764,3.07835989,2928.7,2928.5,0.002]
[1765961659549,6.49284413,2928.7,2928.5,0.002]
[1765961659870,3.07835989,2928.7,2928.5,0.002]
[1765961660245,2.69105989,2928.7,2928.5,0.002]
[1765961660871,3.07835989,2928.7,2928.5,0.002]
[1765961661072,5.95184413,2928.7,2928.5,0.002]
[1765961661275,1.68567966,2928.7,2928.5,0.002]
[1765961661467,0.0107,2928.7,2928.5,0.002]
[1765961663962,0.398,2928.7,2928.5,0.002]
[1765961664281,0.3972,2928.7,2928.5,0.002]
[1765961666651,3.81168424,2928.7,2928.5,0.002]
[1765961669983,3.81268424,2928.7,2928.5,0.002]
[1765961670180,5.46619647,2928.7,2928.5,0.002]
[1765961672685,8.47706008,2928.7,2928.5,0.002]
[1765961675594,8.48351079,2928.7,2928.5,0.002]
[1765961677501,0.001,2928.7,2928.6,4.39050083]
[1765961678280,0.001,2928.7,2928.6,4.42464683]
[1765961678579,0.001,2928.7,2928.6,10.7626733]
[1765961678780,0.001,2929.2,2929.1,1.1616]
[1765961678986,0.001,2929.2,2929.1,6.37342655]
[1765961679191,0.001,2929.2,2929.1,6.36822095]
[1765961679495,0.001,2929.2,2929.1,9.91901839]
[1765961679689,0.001,2929.2,2929.1,11.25233379]
[1765961681099,0.001,2929.2,2929.1,6.51009307]
[1765961681270,0.001,2929.2,2929.1,7.05109307]
[1765961681971,0.001,2929.2,2929.1,6.51009307]
[1765961682170,0.001,2929.2,2929.1,7.05109307]
[1765961682501,0.001,2929.2,2929.1,6.58671284]
[1765961682687,0.001,2929.2,2929.1,6.44993335]
[1765961686814,0.001,2929.2,2929.1,15.73257616]
[1765961687310,0.001,2929.2,2929.1,27.95000009]
[1765961687617,0.001,2929.9,2929.8,0.9739]
[1765961687815,0.001,2929.9,2929.8,4.92810226]
[1765961688113,0.001,2929.9,2929.8,6.18236824]
[1765961688315,0.0002,2929.9,2929.8,5.20846824]
[1765961688516,0.0002,2929.9,2929.8,6.18236824]
[1765961692706,0.0002,2929.9,2929.8,5.15006824]
[1765961693028,0.0002,2929.9,2929.8,4.92810226]
[1765961693410,0.0002,2929.9,2929.8,4.38710226]
[1765961693605,0.0002,2929.9,2929.8,4.92810226]
[1765961695828,0.0002,2929.9,2929.8,4.38710226]
[1765961696032,0.0002,2929.9,2929.8,4.92810226]
[1765961699134,0.0002,2929.9,2929.8,5.76224417]
[1765961701241,0.0002,2929.9,2929.8,4.93010226]
[1765961701535,0.0002,2929.9,2929.8,4.43880226]
[1765961701739,0.1612,2929.9,2929.8,3.95620226]
[1765961701941,0.1612,2929.9,2929.8,0.002]
[1765961702233,0.5455,2929.9,2929.8,0.543]
[1765961702433,0.6381,2929.9,2929.8,0.543]
[1765961702601,0.2538,2929.9,2929.8,3.95620226]
[1765961702807,0.1612,2929.9,2929.8,3.95620226]
[1765961703623,0.1612,2929.9,2929.8,0.543]
[1765961703827,0.6381,2929.9,2929.8,0.543]
[1765961704411,0.2538,2929.9,2929.8,3.95620226]
[1765961704611,0.2538,2929.9,2929.8,0.543]
[1765961706234,0.1612,2929.9,2929.8,3.95620226]
[1765961707846,0.6381,2929.9,2929.8,0.002]
[1765961708024,5.66466491,2929.9,2929.8,0.002]
[1765961708424,1.46342419,2929.9,2929.8,0.002]
[1765961712124,1.46262419,2929.9,2929.8,0.002]
[1765961712917,0.253,2929.9,2929.8,0.002]
[1765961713754,1.02690232,2930.1,2929.8,0.4936]
[1765961714064,1.02690232,2930.1,2930.0,0.4916]
[1765961714065,0.001,2930.1,2930.0,0.4916]
[1765961714243,0.162,2930.1,2930.0,0.4916]
[1765961714418,0.162,2930.1,2929.8,3.9098008]
[1765961714858,0.162,2930.1,2930.0,3.41296928]
[1765961715154,0.162,2930.1,2929.9,3.41302256]
[1765961715353,0.001,2930.1,2930.0,3.41296928]
[1765961715751,0.162,2930.1,2930.0,3.41296928]
[1765961715953,0.001,2930.1,2930.0,3.95396928]
[1765961716155,0.3837,2929.9,2929.8,0.002]
[1765961716359,0.6389,2929.9,2929.8,0.002]
[1765961717024,0.3837,2929.9,2929.8,0.002]
[1765961717463,0.001,2930.1,2930.0,0.4916]
[1765961717642,0.001,2930.1,2930.0,1.99668407]
[1765961718148,0.001,2930.1,2930.0,1.5272]
[1765961719358,0.001,2930.1,2930.0,4.94016928]
[1765961721456,0.001,2930.1,2929.8,4.20324072]
[1765961721457,0.0016,2929.9,2929.8,0.002]
[1765961721757,0.3859,2929.9,2929.8,3.95613797]
[1765961721958,0.001,2930.1,2929.8,7.81454023]
[1765961722162,0.001,2930.1,2929.8,8.35554023]
[1765961723577,0.1624,2929.9,2929.8,0.543]
[1765961724361,0.1624,2929.9,2929.8,3.95620226]
[1765961724561,0.001,2930.5,2930.2,0.4916]
[1765961724747,0.001,2930.5,2930.4,0.9862]
[1765961724947,0.001,2930.5,2929.9,0.1636]
[1765961724948,0.1634,2930.5,2929.9,0.1636]
[1765961725165,0.1634,2930.5,2930.0,0.541]
[1765961725166,0.5471,2930.5,2930.0,0.541]
[1765961725332,0.3837,2930.4,2930.0,0.541]
[1765961725535,0.3869,2930.5,2930.1,3.4128528]
[1765961725746,0.3869,2930.5,2930.1,6.8257056]
[1765961726363,0.3869,2930.5,2930.1,3.4128528]
[1765961726733,0.3869,2930.5,2930.1,6.8257056]
[1765961727238,0.3869,2930.5,2930.2,0.541]
[1765961727239,0.1624,2930.3,2930.2,0.541]
[1765961727767,0.1624,2930.3,2930.2,3.95373633]
[1765961730546,0.1624,2930.3,2930.2,0.541]
[1765961730752,0.0016,2930.2,2930.1,3.41284256]
[1765961731067,0.0016,2930.2,2930.1,3.95384256]
[1765961731267,0.0032,2930.0,2929.9,0.002]
[1765961731472,0.0032,2930.0,2929.9,3.41508577]
[1765961731670,0.0032,2930.0,2929.9,3.95608577]
[1765961732470,0.0032,2930.0,2929.2,4.20124072]
[1765961732471,0.3859,2929.2,2928.7,3.41646113]
[1765961732658,0.1577,2928.8,2928.7,0.002]
[1765961733167,0.5436,2928.8,2928.7,0.002]
[1765961733367,1.02742407,2928.8,2928.7,0.002]
[1765961736366,1.02662407,2928.8,2928.7,0.002]
[1765961737403,0.5428,2928.8,2928.7,0.002]
[1765961739192,10.14171939,2928.8,2928.7,0.002]
[1765961741900,0.3851,2928.6,2927.9,7.2870696]
[1765961742276,0.3851,2928.6,2927.9,6.7460696]
[1765961742597,0.3851,2928.6,2927.9,7.2870696]
[1765961742898,0.3851,2928.5,2927.9,7.2870696]
[1765961745794,0.3851,2928.5,2927.9,7.7632696]
[1765961745996,0.3851,2928.7,2927.9,7.2870696]
[1765961746202,0.3851,2928.7,2928.0,0.4762]
[1765961748095,0.3851,2928.7,2928.1,3.4151839]
[1765961748389,0.0038,2928.1,2928.0,3.41530054]
[1765961748588,0.3851,2928.5,2928.0,3.95630054]
[1765961749421,0.3851,2928.5,2928.0,3.41530054]
[1765961749589,0.3851,2928.5,2928.0,6.83060108]
[1765961750933,3.85033423,2928.7,2927.8,0.002]
[1765961750934,0.1015,2927.9,2927.8,0.002]
[1765961751120,0.4866,2927.9,2927.8,0.002]
[1765961753229,3.90201719,2927.9,2927.8,0.002]
[1765961753392,0.4866,2927.9,2927.8,0.002]
[1765961754103,0.0016,2927.9,2927.8,0.002]
[1765961754304,0.4866,2927.9,2927.8,0.002]
[1765961754632,0.1015,2927.9,2927.8,0.002]
[1765961754798,0.46438023,2928.4,2927.8,0.002]
[1765961755030,0.3851,2927.9,2927.8,0.002]
[1765961756152,0.6474,2927.9,2927.8,0.002]
[1765961756356,0.3867,2927.6,2927.5,0.002]
[1765961756659,0.5453,2927.5,2927.4,0.002]
[1765961756823,0.541,2927.7,2927.4,0.002]
[1765961757023,0.1631,2927.5,2927.4,0.002]
[1765961757245,0.5454,2927.5,2927.4,0.002]
[1765961759056,0.1631,2927.5,2927.4,0.002]
[1765961760194,0.1623,2927.5,2927.4,0.002]
[1765961760529,0.5446,2927.5,2927.4,0.002]
[1765961760763,0.1623,2927.5,2927.4,0.002]
[1765961761258,0.4782,2928.1,2927.5,6.8317677]
[1765961761459,0.0991,2927.9,2927.6,0.73099677]
[1765961761658,0.3843,2928.3,2927.6,0.73099677]
[1765961762361,0.0038,2927.6,2927.5,3.41588385]
[1765961762572,0.3843,2927.5,2927.4,0.002]
[1765961762777,0.3843,2927.5,2927.4,3.41800054]
[1765961763074,0.0991,2927.8,2927.4,6.83400108]
[1765961763281,0.3843,2928.3,2927.4,1.16160011]
[1765961763457,0.9253,2928.3,2927.5,0.4762]
[1765961763972,0.3843,2928.2,2927.5,0.4762]
[1765961764182,0.541,2928.5,2927.5,0.4762]
[1765961764378,0.3843,2928.6,2927.6,0.4868]
[1765961764576,0.9253,2928.6,2927.6,0.4868]
[1765961764748,0.3843,2928.6,2927.6,0.4868]
[1765961764948,0.3843,2928.6,2927.8,0.4868]
[1765961765246,0.3843,2928.6,2927.9,7.31763438]
[1765961765447,0.3843,2928.6,2928.0,1.07331386]
[1765961765975,0.542,2928.8,2928.1,0.6809]
[1765961766156,0.9263,2928.8,2928.1,0.6809]
[1765961766849,0.3843,2928.7,2928.1,0.6809]
[1765961767350,0.3843,2928.7,2928.2,3.41506727]
[1765961767575,0.1625,2928.3,2928.2,3.41506727]
[1765961768075,0.3843,2928.7,2928.2,6.83013454]
[1765961768279,0.3843,2928.7,2928.2,7.62047938]
[1765961768446,0.1625,2928.6,2928.2,3.41506727]
[1765961768952,0.9263,2928.8,2928.2,3.41506727]
[1765961769157,0.1625,2928.3,2928.2,3.41506727]
[1765961769883,0.1625,2928.3,2928.0,3.90208109]
[1765961770397,0.3843,2928.7,2928.0,7.31738163]
[1765961770703,0.3843,2928.7,2928.0,8.12262979]
[1765961771071,0.3843,2928.7,2928.0,7.63582979]
[1765961771398,0.542,2928.8,2928.1,0.4868]
[1765961771596,0.001,2928.8,2928.3,0.4868]
[1765961772176,0.3853,2928.8,2928.4,3.41483403]
[1765961772399,0.001,2928.8,2928.4,6.82966806]
[1765961772570,0.001,2928.8,2928.5,0.4868]
[1765961773894,0.001,2928.8,2928.6,3.41460083]
[1765961774485,0.001,2928.8,2928.5,3.90144251]
[1765961774486,0.001,2928.8,2928.5,3.90147227]
[1765961774692,0.001,2928.8,2928.5,3.41467227]
[1765961775201,0.1625,2928.6,2928.5,3.41467227]
[1765961775395,0.0038,2928.5,2928.4,3.41479578]
[1765961775767,0.5468,2928.3,2928.2,3.41503643]
[1765961775978,0.3843,2928.3,2928.2,3.41503643]
[1765961776598,0.1625,2928.5,2928.3,3.41495065]
[1765961776796,0.3821,2928.4,2928.3,3.41495065]
[1765961777713,0.1657,2928.8,2928.3,6.8299013]
[1765961777887,0.1657,2928.8,2928.2,6.83013454]
[1765961778088,0.1668,2928.2,2928.1,3.41514945]
[1765961778295,0.4769,2927.9,2927.8,0.002]
[1765961778490,0.6458,2927.9,2927.8,0.002]
[1765961781621,1.09833743,2927.9,2927.8,0.002]
[1765961781781,0.6458,2927.9,2927.8,0.002]
[1765961783276,1.11018023,2927.9,2927.8,0.002]
[1765961783483,0.6458,2927.9,2927.8,0.002]
[1765961784218,0.645,2927.9,2927.8,0.002]
[1765961786242,0.4761,2927.9,2927.8,0.002]
[1765961789237,0.4771,2927.9,2927.8,0.002]
[1765961791444,0.378,2927.9,2927.8,0.002]
[1765961791834,0.001,2927.9,2927.8,0.4924]
[1765961792153,0.4828,2927.9,2927.8,0.002]
[1765961792759,0.3845,2927.9,2927.8,0.002]
[1765961794269,0.165,2927.9,2927.8,0.002]
[1765961794863,0.001,2927.9,2927.8,0.9105]
[1765961795369,0.001,2927.9,2927.8,0.457]
[1765961795762,0.165,2927.9,2927.8,3.41753384]
[1765961795971,0.6446,2927.9,2927.8,3.41753384]
[1765961796264,0.2633,2927.9,2927.8,3.41753384]
[1765961797370,0.2633,2927.9,2927.8,0.002]
[1765961798766,0.165,2927.9,2927.8,0.002]
[1765961799467,0.165,2927.9,2927.8,7.62318957]
[1765961801869,0.6446,2927.9,2927.8,4.20765573]
[1765961802166,0.6446,2927.9,2927.8,7.62318957]
[1765961803979,0.001,2927.9,2927.8,7.62318957]
[1765961804169,0.001,2927.9,2927.8,8.10148957]
[1765961804349,0.165,2927.9,2927.8,7.62318957]
[1765961805876,0.165,2927.9,2927.8,4.20765573]
[1765961807670,0.6446,2927.9,2927.8,4.20765573]
[1765961807985,0.6446,2927.9,2927.8,7.62318957]
[1765961808161,0.6438,2927.9,2927.8,7.62318957]
[1765961809481,0.6438,2927.9,2927.8,4.20765573]
[1765961809981,0.6438,2927.9,2927.8,0.002]
[1765961810479,0.6438,2927.9,2927.8,4.20765573]
[1765961810678,0.6438,2927.9,2927.8,7.62318957]
[1765961810884,0.2625,2927.9,2927.8,7.62318957]
[1765961811079,0.1642,2927.9,2927.8,7.62318957]
[1765961811586,0.6438,2927.9,2927.8,7.62318957]
[1765961812484,0.6438,2927.9,2927.8,0.002]
[1765961825102,0.2625,2927.9,2927.8,0.002]
[1765961825273,0.6438,2927.9,2927.8,0.002]
[1765961832220,0.643,2927.9,2927.8,0.002]
[1765961835209,0.644,2927.9,2927.8,0.002]
[1765961835993,0.001,2927.9,2927.8,5.17148218]
[1765961836314,0.001,2927.9,2927.8,6.10927862]
[1765961837101,0.541,2929.2,2928.7,0.4951]
[1765961837307,0.9239,2929.2,2928.7,3.90958424]
[1765961837507,0.165,2928.8,2928.7,8.11606642]
[1765961837818,0.001,2928.8,2928.7,8.11606642]
[1765961838109,0.001,2928.8,2928.7,3.90958424]
[1765961838315,0.3846,2928.5,2927.9,0.1932]
[1765961838517,0.3846,2928.5,2928.4,3.4148042]
[1765961839397,0.1637,2928.3,2928.2,3.41506092]
[1765961842291,0.1637,2928.3,2928.2,4.54002644]
[1765961842497,0.3829,2928.5,2928.2,7.95509371]
[1765961842795,0.1654,2928.4,2928.3,4.20648218]
[1765961843796,0.1654,2928.4,2928.3,7.62143283]
[1765961844302,0.1654,2928.4,2928.3,3.41483475]
[1765961845823,0.3808,2928.6,2928.2,3.41506727]
[1765961845996,0.1675,2928.3,2928.2,3.41506727]
[1765961846527,0.5461,2928.3,2928.2,3.41506727]
[1765961847792,0.0038,2928.1,2928.0,3.41529441]
[1765961848623,0.3867,2928.1,2928.0,3.41529441]
[1765961848819,0.0038,2928.1,2928.0,3.41529441]
[1765961849191,0.6422,2927.9,2927.8,0.002]
[1765961849427,0.6422,2927.9,2927.8,3.41753384]
[1765961849923,0.6422,2927.9,2927.8,0.002]
[1765961853912,0.6422,2927.9,2927.8,3.41753384]
[1765961854612,0.2593,2927.9,2927.8,3.41753384]
[1765961855536,0.1616,2927.9,2927.8,3.41753384]
[1765961855694,0.3829,2928.3,2927.8,8.42083385]
[1765961855897,0.1654,2928.2,2928.1,4.20648218]
[1765961856134,0.001,2928.4,2927.8,0.002]
[1765961856135,0.1667,2927.9,2927.8,0.002]
[1765961856344,0.5453,2927.9,2927.8,0.002]
[1765961856513,0.1667,2927.9,2927.8,0.002]
[1765961859436,0.1667,2927.9,2927.8,3.41753384]
[1765961861532,0.1667,2927.9,2927.8,0.002]
[1765961861730,0.3786,2928.1,2927.8,0.002]
[1765961861931,0.001,2928.3,2927.8,0.002]
[1765961861932,0.6422,2927.9,2927.8,0.002]
[1765961862308,0.2649,2927.9,2927.8,0.002]
[1765961862535,0.168,2927.9,2927.8,0.002]
[1765961862935,0.001,2928.3,2927.8,0.9255]
[1765961863128,0.001,2928.3,2928.1,0.4607]
[1765961863327,0.001,2928.3,2928.0,4.6667031]
[1765961863834,0.001,2928.3,2928.1,6.8303678]
[1765961864407,0.001,2928.3,2928.1,11.0363709]
[1765961866032,0.001,2928.3,2928.2,0.9235]
[1765961867438,0.001,2928.3,2928.2,0.4628]
[1765961867839,0.001,2928.3,2928.2,4.33856727]
[1765961871743,0.001,2928.3,2928.2,3.87786727]
[1765961871942,0.1663,2928.3,2928.2,3.41506727]
[1765961872139,0.001,2928.3,2928.1,3.4151839]
[1765961872623,0.1675,2928.2,2928.1,3.4151839]
[1765961872824,0.5453,2928.2,2928.1,3.4151839]
[1765961873141,0.1675,2928.2,2928.1,3.4151839]
[1765961873842,0.001,2928.3,2928.1,7.2931678]
[1765961874045,0.001,2928.3,2928.2,0.4628]
[1765961874344,0.001,2928.3,2928.2,3.87786727]
[1765961874547,0.1663,2928.3,2928.2,3.87786727]
[1765961875170,0.1663,2928.3,2928.2,3.41506727]
[1765961879452,0.5463,2928.3,2928.2,3.41506727]
[1765961880166,0.0038,2928.2,2927.9,6.83078814]
[1765961882353,0.0038,2928.2,2927.9,7.29148814]
[1765961883555,0.3802,2928.3,2927.9,7.29148814]
[1765961883556,0.0002,2928.3,2928.1,4.6688031]
[1765961883927,0.1653,2928.2,2928.1,4.6688031]
[1765961884456,0.1653,2928.2,2928.1,8.083987]
[1765961886661,0.0002,2928.3,2928.1,11.4991709]
[1765961886962,0.0002,2928.3,2928.1,11.6981709]
[1765961887168,0.0002,2928.3,2928.2,0.4522]
[1765961888973,0.0002,2928.3,2928.1,11.2353709]
[1765961889178,0.0002,2928.3,2928.1,11.6875709]
[1765961889864,0.0002,2928.3,2928.1,7.4815678]
[1765961893667,0.0002,2928.3,2928.1,6.8303678]
[1765961894171,0.0002,2928.3,2928.1,7.2825678]
[1765961894674,0.1653,2928.2,2928.1,3.4151839]
[1765961894844,0.0002,2928.3,2928.1,6.8303678]
[1765961895045,0.0002,2928.3,2928.2,4.65700391]
[1765961895258,0.0002,2928.3,2928.2,4.20480391]
[1765961896373,0.0002,2928.3,2928.2,7.61987118]
[1765961896573,0.0002,2928.3,2928.2,8.07207118]
[1765961896875,0.0002,2928.3,2928.2,7.61987118]
[1765961897444,0.0002,2928.3,2928.2,8.07207118]
[1765961897646,0.0002,2928.3,2928.2,7.61987118]
[1765961900070,0.1471,2928.3,2928.2,7.61987118]
[1765961900254,0.1471,2928.3,2928.2,9.53810524]
[1765961900458,0.1471,2928.3,2928.2,9.99030524]
[1765961904251,0.1463,2928.3,2928.2,9.99030524]
[1765961904860,0.1463,2928.3,2928.2,10.45468547]
[1765961908782,0.1473,2928.3,2928.2,10.45468547]
[1765961909079,0.1473,2928.3,2928.2,15.06499338]
[1765961909449,0.1473,2928.3,2928.2,10.86018947]
[1765961915485,0.1473,2928.3,2928.2,15.06499338]
[1765961921405,0.1473,2928.3,2928.2,15.059886]
[1765961922975,0.001,2928.4,2928.3,1.81568423]
[1765961923203,0.001,2928.8,2928.7,0.4775]
[1765961923371,0.001,2928.8,2928.7,13.77016491]
[1765961926695,0.001,2929.1,2929.0,0.4775]
[1765961926903,0.001,2929.1,2929.0,0.9458]
[1765961927077,0.001,2929.1,2929.0,5.14805022]
[1765961927276,0.001,2929.1,2929.0,5.70929327]
[1765961927806,0.001,2929.1,2929.0,9.12342778]
[1765961928304,0.0002,2929.1,2929.0,8.64592778]
[1765961928609,0.0002,2929.1,2929.0,9.12342778]
[1765961931108,0.0002,2929.1,2929.0,13.731182]
[1765961931472,0.0002,2929.1,2929.0,13.86796055]
[1765961934510,0.0002,2929.1,2929.0,9.26020633]
[1765961934703,0.0002,2929.1,2929.0,9.66442778]
[1765961935681,0.0002,2929.1,2929.0,5.46217756]
[1765961935995,0.0002,2929.1,2929.0,9.56756496]
[1765961936190,0.0002,2929.1,2929.0,9.10318473]
[1765961938805,0.0002,2929.1,2929.0,8.56218473]
[1765961939108,0.0002,2929.1,2929.0,8.09388473]
[1765961939512,0.0002,2929.1,2929.0,8.56218473]
[1765961939886,0.3823,2929.1,2929.0,3.41413451]
[1765961940214,0.5485,2929.1,2929.0,3.41413451]
[1765961940713,0.1664,2929.1,2928.9,6.82849202]
[1765961940918,0.38,2929.0,2928.9,3.87862117]
[1765961941213,0.0002,2929.1,2928.9,7.29287225]
[1765961941420,0.0002,2929.1,2929.0,4.20225022]
[1765961942987,0.0002,2929.1,2929.0,7.61638473]
[1765961943486,0.0002,2929.1,2929.0,8.76588532]
[1765961944482,0.0002,2929.1,2929.0,8.76788532]
[1765961946687,0.0002,2929.1,2929.0,7.61838473]
[1765961946989,0.0002,2929.1,2929.0,8.09738473]
[1765961947322,0.0002,2929.1,2929.0,3.41613451]
[1765961947323,0.1664,2929.1,2929.0,3.41613451]
[1765961948024,0.0002,2929.1,2929.0,8.07948473]
[1765961949414,0.0002,2929.1,2929.0,3.87723451]
[1765961949591,0.0002,2929.1,2929.0,8.07948473]
[1765961952215,0.0004,2929.5,2929.4,0.4611]
[1765961952396,0.0004,2929.5,2929.4,5.14235022]
[1765961952806,0.0004,2929.5,2929.4,5.1764869]
[1765961952998,0.0004,2929.5,2929.4,5.14235022]
[1765961954129,0.0004,2929.5,2929.4,8.55601854]
[1765961954308,0.0004,2929.5,2929.4,10.22732274]
[1765961958039,0.0004,2929.5,2929.4,6.02507252]
[1765961958205,0.0004,2929.5,2929.4,8.55601854]
[1765961959741,0.0004,2929.5,2929.4,8.55450265]
[1765961960438,0.0004,2929.5,2929.4,8.07550265]
[1765961960641,0.0004,2929.5,2929.4,8.55450265]
[1765961963726,0.0004,2929.5,2929.4,4.35376832]
[1765961963938,0.0004,2929.5,2929.4,8.07550265]
[1765961964460,0.0004,2929.5,2929.4,10.17760367]
[1765961969932,0.1666,2929.5,2929.4,3.41366832]
[1765961970134,0.5466,2929.5,2929.4,3.41366832]
[1765961970527,0.1666,2929.5,2929.4,3.41366832]
[1765961971456,0.0004,2929.5,2929.4,4.20073433]
[1765961971621,0.0004,2929.5,2929.4,4.20273433]
[1765961974054,0.0004,2929.5,2929.4,7.61640265]
[1765961974283,0.0004,2929.5,2929.4,8.09540265]
[1765961975537,0.1666,2929.5,2929.4,7.61640265]
[1765961976358,0.1658,2929.5,2929.4,7.61640265]
[1765961976657,0.001,2929.6,2929.4,11.03007097]
[1765961981532,0.001,2929.6,2929.4,0.002]
[1765961981933,0.001,2929.6,2929.4,0.4947]
[1765961984558,0.001,2929.6,2929.5,4.3979518]
[1765961985142,0.001,2929.6,2929.5,3.9052518]
[1765961985539,0.3827,2929.6,2929.5,3.4135518]
[1765961985856,0.5485,2929.6,2929.5,3.4135518]
[1765961986570,0.3834,2929.5,2929.4,0.002]
[1765961987066,0.0017,2929.5,2929.4,0.002]
[1765961989965,0.001,2929.6,2929.4,0.002]
[1765961990638,0.001,2929.6,2929.4,0.4947]
[1765961991344,0.001,2929.6,2929.4,0.002]
[1765961992052,0.1658,2929.5,2929.4,0.002]
[1765961992577,0.001,2929.6,2929.5,3.4135518]
[1765961993152,0.001,2929.6,2929.5,5.16427788]
[1765961993354,0.001,2929.6,2929.5,5.67014237]
[1765961994383,0.001,2929.6,2929.5,6.1345226]
[1765961996471,0.001,2929.6,2929.5,5.6418226]
[1765961996666,0.001,2929.6,2929.5,6.1345226]
[1765961998667,0.001,2929.6,2929.5,10.33595373]
[1765962000188,0.0002,2929.6,2929.5,5.1501226]